bitfinex/quotes_SOLUSD_20211001
["timestamp","ask_amount","ask_price","bid_price","bid_amount"]
[1633068530372,36.75007393,141.78,141.67,2.03856858]
[1633068531778,36.75007393,141.78,141.66,2.0593616]
[1633068532375,36.75007393,141.78,141.67,2.03862643]
[1633068533676,36.75007393,141.78,141.66,2.03897276]
[1633068534076,63.60273684,141.78,141.66,2.03897276]
[1633068534278,17.6538,141.77,141.65,2.03904685]
[1633068534482,3.02,141.76,141.65,2.03904685]
[1633068534677,23.42400989,141.75,141.65,2.03904685]
[1633068534878,3.02,141.74,141.65,2.03904685]
[1633068535077,3.02,141.74,141.66,2.03938102]
[1633068535277,3.02,141.74,141.65,2.03939671]
[1633068536278,3.02,141.74,141.66,2.03970913]
[1633068537778,3.02,141.74,141.67,2.03970684]
[1633068538679,3.02,141.74,141.68,2.03965902]
[1633068539480,3.02,141.74,141.67,2.03991932]
[1633068541481,3.02,141.74,141.68,2.04005549]
[1633068542482,3.02,141.74,141.69,2.04017464]
[1633068543481,3.02,141.74,141.68,2.04023996]
[1633068544081,3.02,141.74,141.67,2.04036322]
[1633068544285,23.691,141.74,141.67,2.04036322]
[1633068544882,29.32642961,141.74,141.67,2.04036322]
[1633068545683,78.1159,141.73,141.67,2.04036322]
[1633068545882,3.02,141.72,141.67,2.04036322]
[1633068546284,3.02,141.72,141.68,2.04051845]
[1633068546481,3.02,141.72,141.66,2.04071283]
[1633068548281,3.02,141.72,141.67,2.04090494]
[1633068549486,3.02,141.72,141.68,2.04101706]
[1633068551284,3.02,141.72,141.69,2.04097178]
[1633068551986,3.02,141.72,141.7,2.041093]
[1633068553386,3.02,141.72,141.71,2.04158797]
[1633068553586,3.02,141.72,141.7,2.04164105]
[1633068553785,3.02,141.72,141.71,2.04166507]
[1633068555390,3.02,141.72,141.69,2.04206946]
[1633068555593,22.949,141.72,141.68,2.04222677]
[1633068558491,5.63542961,141.71,141.68,2.04222677]
[1633068558692,3.02,141.7,141.68,2.04222677]
[1633068559089,3.02,141.7,141.67,2.0424071]
[1633068559489,26.85284843,141.69,141.67,2.0424071]
[1633068559692,3.02,141.68,141.67,2.0424071]
[1633068559891,20.418,141.68,141.67,2.0424071]
[1633068561495,26.05342961,141.68,141.67,2.0424071]
[1633068561694,52.90609252,141.68,141.65,2.04285497]
[1633068561896,97.55658886,141.68,141.65,2.04285497]
[1633068562496,97.55658886,141.68,141.64,2.04281032]
[1633068562894,97.55658886,141.68,141.63,2.04262533]
[1633068563498,97.55658886,141.68,141.62,2.04283217]
[1633068563896,97.55658886,141.68,141.63,2.04267424]
[1633068564898,97.55658886,141.68,141.62,2.04241884]
[1633068565497,97.55658886,141.68,141.61,2.04252362]
[1633068566298,97.55658886,141.68,141.6,2.04227819]
[1633068567202,97.55658886,141.68,141.59,2.04215066]
[1633068568802,18.44135485,141.67,141.59,2.04215066]
[1633068569002,3.02,141.66,141.58,2.04190209]
[1633068569203,35.50809252,141.66,141.58,2.04190209]
[1633068569404,21.42862418,141.65,141.58,2.04190209]
[1633068569604,31.30834931,141.64,141.58,2.04190209]
[1633068569804,8.65542961,141.64,141.57,2.04204585]
[1633068570007,3.02,141.64,141.58,2.04180028]
[1633068570408,3.02,141.64,141.59,2.04160961]
[1633068570604,3.02,141.64,141.6,2.04157377]
[1633068571605,3.02,141.64,141.61,2.04142009]
[1633068573608,3.02,141.64,141.61,23.51490933]
[1633068574007,3.02,141.64,141.61,2.04142009]
[1633068575212,3.02,141.64,141.59,2.04171046]
[1633068578414,26.85266291,141.63,141.58,2.04183117]
[1633068578613,3.02,141.62,141.58,2.04183117]
[1633068578812,3.02,141.62,141.56,2.04198142]
[1633068579013,26.85266291,141.61,141.56,2.04198142]
[1633068579214,3.02,141.6,141.56,2.04198142]
[1633068579411,28.08882169,141.59,141.56,2.04198142]
[1633068579613,31.10882169,141.59,141.55,2.04208087]
[1633068581011,31.10882169,141.59,141.56,2.04189061]
[1633068581812,31.10882169,141.59,141.55,2.04202834]
[1633068582015,31.10882169,141.59,141.56,2.04202217]
[1633068582215,31.10882169,141.59,141.55,2.04213182]
[1633068582616,46.36482169,141.59,141.54,2.04230385]
[1633068582816,46.36482169,141.59,141.53,2.04238088]
[1633068583415,46.36482169,141.59,141.54,2.04235632]
[1633068583818,46.36482169,141.59,141.53,2.04250109]
[1633068584716,46.36482169,141.59,141.54,2.04278744]
[1633068585618,81.10728762,141.59,141.53,2.04283199]
[1633068585820,185.37458939,141.59,141.49,2.04295039]
[1633068586019,187.78340404,141.59,141.48,2.04308402]
[1633068586419,18.73512298,141.58,141.48,2.04308402]
[1633068586618,3.02,141.57,141.47,2.04325941]
[1633068586818,66.6197677,141.57,141.47,2.04325941]
[1633068587019,34.74246593,141.56,141.47,2.04325941]
[1633068587217,3.02,141.55,141.47,2.04325941]
[1633068587421,37.76246593,141.55,141.47,2.04325941]
[1633068587618,37.76246593,141.55,141.43,12.27004199]
[1633068587619,111.17263632,141.55,141.46,2.04267201]
[1633068587820,71.06412535,141.54,141.45,2.042935]
[1633068588019,71.06412535,141.54,141.42,4.08586999]
[1633068588020,3.02,141.53,141.44,2.04306744]
[1633068588221,37.76246593,141.53,141.45,2.04292591]
[1633068588428,16.90270624,141.52,141.45,2.04292591]
[1633068588619,3.02,141.51,141.45,2.04292591]
[1633068588818,5.63542961,141.51,141.44,2.04266241]
[1633068589019,8.65542961,141.5,141.44,2.04266241]
[1633068589219,8.65542961,141.5,141.43,2.0428971]
[1633068589420,5.63542961,141.49,141.44,2.04284838]
[1633068589621,3.02,141.48,141.44,2.04284838]
[1633068589821,3.02,141.48,141.43,2.04257151]
[1633068590021,24.87726677,141.48,141.43,2.04257151]
[1633068590223,24.87726677,141.48,141.44,2.04262836]
[1633068591028,24.87726677,141.48,141.43,2.04250177]
[1633068591224,24.87726677,141.48,141.42,2.04264438]
[1633068592426,53.23969638,141.48,141.41,34.36909071]
[1633068592624,53.23969638,141.48,141.41,31.82661913]
[1633068593023,82.3467327,141.48,141.41,31.82661913]
[1633068593225,31.82661913,141.41,141.39,2.04243765]
[1633068593425,52.14961913,141.41,141.37,2.0427245]
[1633068593628,26.1411779,141.4,141.36,2.042869]
[1633068594027,29.1611779,141.4,141.36,2.042869]
[1633068594227,34.79660751,141.4,141.34,2.04275599]
[1633068594434,34.79660751,141.4,141.33,2.04283987]
[1633068594829,34.79660751,141.4,141.32,2.04242472]
[1633068595033,29.1611779,141.4,141.32,2.04242472]
[1633068595230,29.1611779,141.4,141.29,40.87650849]
[1633068595231,29.1611779,141.4,141.31,2.04250803]
[1633068595629,29.1611779,141.4,141.32,2.04239167]
[1633068596630,29.1611779,141.4,141.32,10.09839983]
[1633068596852,29.1611779,141.4,141.32,2.04239167]
[1633068597436,29.1611779,141.4,141.31,2.04189994]
[1633068597830,29.1611779,141.4,141.3,2.04172122]
[1633068599239,72.3418,141.39,141.3,2.04172122]
[1633068599436,27.83775029,141.37,141.3,2.04172122]
[1633068599857,3.02,141.36,141.3,2.04172122]
[1633068600860,3.02,141.36,141.28,2.04155346]
[1633068601461,3.02,141.36,141.27,2.04172]
[1633068601860,3.02,141.36,141.28,2.04179945]
[1633068602062,3.02,141.36,141.25,5.32140771]
[1633068602261,3.02,141.36,141.23,312.01420909]
[1633068602262,89.63542961,141.35,141.23,312.01420909]
[1633068602460,3.02,141.34,141.21,0.02088]
[1633068602661,17.7136,141.3,141.19,2.04291152]
[1633068602862,3.02,141.29,141.15,62.06337046]
[1633068603066,3.09524933,141.28,141.15,0.02088]
[1633068603264,3.02,141.27,141.15,0.02088]
[1633068603463,3.02,141.27,141.14,0.02088]
[1633068603464,29.59042961,141.27,141.14,0.02088]
[1633068603664,29.59042961,141.27,141.13,3.02]
[1633068603863,7.44925982,141.26,141.13,3.02]
[1633068604067,3.02,141.25,141.13,3.02]
[1633068604463,19.9323852,141.24,141.13,25.9208591]
[1633068604663,3.02,141.23,141.13,25.9208591]
[1633068605066,3.02,141.23,141.11,0.02088]
[1633068605464,3.02,141.23,141.1,0.02088]
[1633068605665,20.3664173,141.22,141.1,0.02088]
[1633068605871,3.02,141.21,141.1,0.02088]
[1633068606268,3.02,141.21,141.1,27.07975425]
[1633068606466,3.02,141.21,141.1,25.28025425]
[1633068606769,3.02,141.21,141.08,30.02088]
[1633068606967,3.02,141.21,141.08,0.02088]
[1633068607569,19.9323852,141.2,141.08,0.02088]
[1633068607770,3.02,141.19,141.08,27.87754772]
[1633068608368,3.02,141.19,141.08,29.91836656]
[1633068608570,3.02,141.19,141.08,27.87754772]
[1633068608972,3.02,141.19,141.09,8.0049]
[1633068610172,3.02,141.19,141.09,10.0453576]
[1633068610973,3.02,141.19,141.09,13.0653576]
[1633068612173,3.02,141.19,141.1,2.04062593]
[1633068612475,3.02,141.19,141.11,24.45228426]
[1633068613875,3.02,141.19,141.11,26.49326514]
[1633068614077,3.02,141.22,141.12,2.04079142]
[1633068614280,3.02,141.24,141.14,2.04058018]
[1633068614484,3.02,141.24,141.15,8.0015]
[1633068615078,3.02,141.26,141.16,23.9178529]
[1633068615876,3.02,141.26,141.16,25.9590702]
[1633068616079,3.02,141.26,141.16,23.9178529]
[1633068616679,3.02,141.26,141.16,25.95917604]
[1633068617678,3.02,141.26,141.17,2.04185397]
[1633068618779,3.02,141.26,141.18,2.04218594]
[1633068618979,3.02,141.28,141.19,2.04197126]
[1633068619182,3.02,141.3,141.26,3.02]
[1633068619380,3.02,141.32,141.26,20.521]
[1633068619779,3.02,141.32,141.26,46.79955943]
[1633068620581,3.02,141.34,141.26,46.79955943]
[1633068621180,3.02,141.34,141.26,20.521]
[1633068621386,37.54579926,141.34,141.26,3.02]
[1633068621588,66.98087881,141.34,141.26,3.02]
[1633068622186,71.77570589,141.34,141.26,3.02]
[1633068623183,66.98087881,141.34,141.26,3.02]
[1633068623382,61.3454492,141.34,141.26,3.02]
[1633068623885,3.02,141.34,141.26,5.06400695]
[1633068624284,3.02,141.34,141.27,28.24745002]
[1633068624986,3.02,141.34,141.27,30.2917064]
[1633068625385,3.02,141.34,141.27,28.24745002]
[1633068625789,3.02,141.34,141.27,30.29211143]
[1633068626585,3.02,141.34,141.27,2.04466141]
[1633068627387,3.02,141.34,141.28,2.04506379]
[1633068627988,31.91036965,141.34,141.28,2.04506379]
[1633068628789,31.91036965,141.34,141.29,2.04595058]
[1633068629991,31.91036965,141.34,141.3,2.04642063]
[1633068632189,31.91036965,141.34,141.3,25.31302924]
[1633068632589,31.91036965,141.34,141.3,2.04642063]
[1633068633394,31.91036965,141.34,141.29,2.04648744]
[1633068633598,31.91036965,141.34,141.3,2.04647759]
[1633068634795,31.91036965,141.34,141.29,2.04649472]
[1633068635292,31.91036965,141.34,141.28,2.04667385]
[1633068635492,31.91036965,141.34,141.29,2.04656476]
[1633068636694,31.91036965,141.34,141.28,2.04670386]
[1633068636895,31.91036965,141.34,141.29,2.04669867]
[1633068637495,31.91036965,141.34,141.28,2.04673227]
[1633068638095,31.91036965,141.34,141.27,2.04709461]
[1633068638500,37.54579926,141.34,141.27,2.04709461]
[1633068638698,37.54579926,141.34,141.28,2.04728829]
[1633068640798,37.54579926,141.34,141.27,2.04762403]
[1633068641200,37.54579926,141.34,141.28,2.04760088]
[1633068642002,37.54579926,141.34,141.27,2.04779883]
[1633068642203,37.54579926,141.34,141.27,30.73937987]
[1633068642408,31.91036965,141.34,141.27,30.73937987]
[1633068642802,31.91036965,141.34,141.28,2.04797574]
[1633068643402,61.3454492,141.34,141.28,2.04797574]
[1633068644801,66.98087881,141.34,141.29,2.04829865]
[1633068645003,66.98087881,141.34,141.28,2.04829794]
[1633068645803,142.49177881,141.34,141.28,2.04829794]
[1633068646403,142.49177881,141.34,141.27,2.04854105]
[1633068647006,142.49177881,141.34,141.28,2.04862252]
[1633068648708,142.49177881,141.34,141.29,2.0487914]
[1633068648909,66.98087881,141.34,141.29,2.0487914]
[1633068651310,66.98087881,141.34,141.3,2.04872319]
[1633068660222,76.1803,141.33,141.3,2.04872319]
[1633068660422,3.02,141.32,141.3,2.04872319]
[1633068661824,31.91036965,141.34,141.31,2.04838117]
[1633068664127,37.54579926,141.34,141.31,2.04838117]
[1633068666929,31.91036965,141.34,141.31,2.04838117]
[1633068667331,28.89036965,141.34,141.31,2.04838117]
[1633068667533,28.89036965,141.34,141.26,3.02]
[1633068667534,37.54579926,141.34,141.3,2.04818871]
[1633068667833,8.65542961,141.34,141.29,2.04834414]
[1633068668032,8.65542961,141.34,141.3,2.04821601]
[1633068668432,8.65542961,141.34,141.27,4.09643202]
[1633068668433,8.65542961,141.34,141.29,2.0483045]
[1633068669033,35.95691037,141.34,141.29,2.0483045]
[1633068669236,35.95691037,141.34,141.28,2.04852951]
[1633068669434,82.0,141.33,141.26,3.02]
[1633068669633,3.02,141.32,141.26,3.02]
[1633068669833,37.47357704,141.32,141.26,3.02]
[1633068670036,5.63542961,141.31,141.26,3.02]
[1633068670235,3.02,141.3,141.26,3.02]
[1633068670635,8.65542961,141.3,141.26,3.02]
[1633068675244,3.02,141.3,141.26,3.02]
[1633068678645,5.63542961,141.29,141.26,3.02]
[1633068678844,8.65542961,141.29,141.26,3.02]
[1633068679044,3.02,141.29,141.26,3.02]
[1633068680046,37.47357704,141.32,141.26,3.02]
[1633068680246,3.02,141.32,141.26,3.02]
[1633068680646,3.02,141.34,141.26,3.02]
[1633068680866,9.32878381,141.37,141.26,3.02]
[1633068680867,8.65542961,141.37,141.26,10.13588481]
[1633068681247,3.02,141.37,141.27,84.07537835]
[1633068681445,3.02,141.37,141.28,29.03647852]
[1633068681646,3.02,141.37,141.28,47.798766]
[1633068681846,3.02,141.39,141.28,50.818766]
[1633068682050,3.02,141.39,141.29,4.09464964]
[1633068682447,3.02,141.39,141.28,50.81835032]
[1633068682649,5.63542961,141.38,141.29,4.09457385]
[1633068683873,5.63542961,141.38,141.28,50.81745274]
[1633068684874,5.63542961,141.38,141.28,46.72347852]
[1633068685075,5.63542961,141.38,141.28,50.81735255]
[1633068685276,3.02,141.4,141.28,50.81735255]
[1633068685277,3.02,141.4,141.29,4.09346996]
[1633068685476,3.02,141.4,141.3,4.09338476]
[1633068685676,75.06660885,141.43,141.31,3.02]
[1633068685878,59.7204492,141.43,141.31,20.534]
[1633068686076,3.72062589,141.42,141.32,25.93634364]
[1633068686278,3.72062589,141.42,141.32,28.95634364]
[1633068687078,28.09441981,141.42,141.32,28.95634364]
[1633068688678,3.02,141.41,141.32,25.93634364]
[1633068689681,58.94190617,141.42,141.32,25.93634364]
[1633068692882,28.09441981,141.42,141.32,28.95634364]
[1633068695985,3.02,141.41,141.3,3.02]
[1633068696984,3.02,141.41,141.3,26.80536488]
[1633068700988,3.02,141.43,141.3,26.80536488]
[1633068701190,3.02,141.43,141.3,32.44079449]
[1633068701590,3.02,141.43,141.3,26.80536488]
[1633068702190,8.65542961,141.43,141.3,3.02]
[1633068702394,67.59733578,141.43,141.3,3.02]
[1633068702592,67.59733578,141.43,141.27,0.02088]
[1633068702792,18.57850973,141.42,141.27,0.02088]
[1633068702991,3.02,141.41,141.26,3.02]
[1633068703192,75.41,141.4,141.26,3.02]
[1633068703390,17.7043,141.36,141.26,3.02]
[1633068703592,78.1461,141.35,141.26,3.02]
[1633068703794,0.02088,141.34,141.26,3.02]
[1633068704090,3.02,141.33,141.26,3.02]
[1633068704293,0.02088,141.32,141.26,3.02]
[1633068704490,3.02,141.31,141.26,3.02]
[1633068704689,8.65542961,141.31,141.26,0.0001]
[1633068704892,51.87285748,141.31,141.26,0.0001]
[1633068705092,69.58455748,141.31,141.26,0.0001]
[1633068705293,5.63542961,141.3,141.26,0.0001]
[1633068705491,82.02,141.29,141.16,3.02]
[1633068705690,31.11441981,141.29,141.16,3.02]
[1633068706292,7.82169216,141.28,141.16,3.02]
[1633068706493,3.02,141.27,141.16,3.02]
[1633068706894,3.02,141.27,141.17,0.02088]
[1633068707293,3.02,141.27,141.16,0.02088]
[1633068707691,3.02,141.27,141.15,27.64873137]
[1633068709292,31.11441981,141.27,141.15,27.64873137]
[1633068709693,31.11441981,141.27,141.15,24.62873137]
[1633068710498,36.74984942,141.27,141.15,24.62873137]
[1633068713298,31.11441981,141.27,141.15,24.62873137]
[1633068713498,5.63542961,141.26,141.15,24.62873137]
[1633068713699,3.02,141.25,141.15,24.62873137]
[1633068718501,3.02,141.25,141.14,0.02088]
[1633068718803,89.66281185,141.25,141.07,3.02]
[1633068719002,15.12300806,141.24,141.06,0.02088]
[1633068719203,3.02,141.23,141.06,0.02088]
[1633068719403,62.15458592,141.23,141.06,28.62123143]
[1633068719602,68.92521185,141.22,141.06,28.60035143]
[1633068719804,3.02,141.21,141.06,28.60035143]
[1633068720002,24.26952028,141.21,141.06,28.60035143]
[1633068720204,17.7235,141.2,141.06,28.60035143]
[1633068720406,3.02,141.19,141.06,28.60035143]
[1633068722908,39.69557582,141.19,141.05,3.02]
[1633068723112,71.94521185,141.19,141.05,3.02]
[1633068723312,71.94521185,141.19,141.03,3.02]
[1633068723911,71.94521185,141.19,141.04,24.63564059]
[1633068724110,74.9569,141.18,141.04,24.63564059]
[1633068724309,3.02,141.17,141.04,24.63564059]
[1633068731919,3.02,141.17,141.05,7.07502042]
[1633068732319,3.02,141.17,141.06,3.02]
[1633068732519,3.02,141.17,141.07,38.62078702]
[1633068732720,3.02,141.17,141.08,7.07454989]
[1633068732920,3.02,141.17,141.08,11.170932]
[1633068733120,3.02,141.17,141.08,7.07454989]
[1633068735023,3.02,141.17,141.08,11.17145152]
[1633068735428,3.02,141.17,141.08,7.07454989]
[1633068737323,3.02,141.17,141.08,11.17163634]
[1633068738527,3.02,141.19,141.17,3.02]
[1633068738728,3.02,141.21,141.17,23.64]
[1633068739726,3.02,141.25,141.17,48.51061061]
[1633068740525,3.02,141.25,141.17,23.64]
[1633068741526,3.02,141.25,141.17,3.02]
[1633068746930,34.64940916,141.25,141.17,3.02]
[1633068749335,29.01397955,141.25,141.17,3.02]
[1633068751437,34.64940916,141.25,141.17,3.02]
[1633068753143,78.0254,141.24,141.17,3.02]
[1633068753341,3.02,141.23,141.17,3.02]
[1633068754840,8.65542961,141.23,141.17,3.02]
[1633068759946,3.02,141.23,141.17,3.02]
[1633068767454,33.0,141.22,141.14,21.80160157]
[1633068767655,3.02,141.24,141.15,6.78903414]
[1633068768556,30.71626486,141.24,141.15,6.78903414]
[1633068772961,36.35169447,141.24,141.15,6.78903414]
[1633068773161,36.35169447,141.24,141.12,6.79026629]
[1633068774163,77.5678,141.23,141.12,6.79026629]
[1633068774363,7.82975871,141.21,141.12,6.79026629]
[1633068774564,3.02,141.2,141.12,6.79026629]
[1633068774762,3.02,141.2,141.09,107.64680336]
[1633068774763,3.02,141.2,141.1,6.79063755]
[1633068778692,7.82975871,141.21,141.11,3.02]
[1633068778892,7.82975871,141.21,141.12,33.6002574]
[1633068779094,3.02,141.22,141.13,6.78978408]
[1633068779696,8.65542961,141.22,141.13,6.78978408]
[1633068780093,28.41951134,141.21,141.13,6.78978408]
[1633068782896,3.02,141.22,141.13,6.78978408]
[1633068789505,3.02,141.22,141.18,2.04979602]
[1633068793408,3.02,141.24,141.18,2.04979602]
[1633068793608,3.02,141.24,141.19,2.04982122]
[1633068794609,10.38842574,141.24,141.19,2.04982122]
[1633068794813,16.02385535,141.24,141.16,2.05020775]
[1633068795010,53.97440529,141.24,141.13,2.05059086]
[1633068795210,83.58800243,141.24,141.13,2.05059086]
[1633068795412,5.65630961,141.23,141.13,2.05059086]
[1633068795612,3.02,141.22,141.12,2.05074868]
[1633068795811,21.79315329,141.21,141.12,2.05074868]
[1633068796013,3.04088,141.2,141.11,2.05090248]
[1633068796212,3.04088,141.2,141.1,2.05061498]
[1633068796611,5.63542961,141.19,141.1,2.05061498]
[1633068796812,3.04088,141.18,141.09,2.05077187]
[1633068797010,13.75375028,141.17,141.08,5.76070176]
[1633068797211,3.02,141.16,141.08,5.76070176]
[1633068797413,3.02,141.16,141.08,3.71019]
[1633068797613,8.65542961,141.16,141.08,3.71019]
[1633068797811,34.64940916,141.16,141.08,3.71019]
[1633068798211,27.11052154,141.01,141.0,455.4458899]
[1633068798615,27.11052154,141.01,140.99,0.10808364]
[1633068799112,30.13052154,141.01,140.99,0.10808364]
[1633068800528,47.33952154,141.01,140.99,0.10808364]
[1633068802319,10.10522624,141.0,140.99,0.10808364]
[1633068802523,13.12522624,141.0,140.99,0.10808364]
[1633068802720,3.02,141.0,140.99,0.10808364]
[1633068804121,3.02,141.0,140.88,78.63296442]
[1633068804122,3.02,141.0,140.88,78.24104806]
[1633068807026,3.02,141.0,140.89,3.02]
[1633068807826,31.14888034,141.0,140.89,3.02]
[1633068808629,31.14888034,141.0,140.88,78.24104806]
[1633068809029,3.02,141.0,140.88,78.24104806]
[1633068809833,3.02,141.0,140.88,50.5]
[1633068810033,3.02,141.0,140.87,3.04088]
[1633068810034,33.48964945,141.0,140.87,0.02088]
[1633068810235,65.4938318,141.0,140.85,478.79555406]
[1633068810431,65.4938318,141.0,140.85,448.79555406]
[1633068810830,3.04088,141.0,140.85,451.81555406]
[1633068811033,21.69641603,140.99,140.86,21.76653375]
[1633068811234,3.02,140.98,140.86,21.76653375]
[1633068814432,3.02,140.98,140.85,431.31555406]
[1633068814633,26.243,140.98,140.85,428.29555406]
[1633068814832,0.02088,140.97,140.83,3.02]
[1633068815036,3.02,140.96,140.83,3.02]
[1633068815633,11.2015239,140.95,140.84,29.18987661]
[1633068815835,14.2215239,140.95,140.84,29.18987661]
[1633068818438,14.2215239,140.95,140.81,3.02]
[1633068818638,14.2215239,140.95,140.8,829.74456431]
[1633068819440,43.03006223,140.95,140.81,24.9423586]
[1633068819643,0.02088,140.94,140.81,24.9423586]
[1633068819841,21.69641603,140.92,140.81,24.9423586]
[1633068820040,3.02,140.91,140.81,24.9423586]
[1633068822745,0.02088,140.94,140.81,27.9623586]
[1633068822944,3.02,140.93,140.81,81.06274688]
[1633068823147,3.02,140.94,140.81,86.69817649]
[1633068823344,3.02,140.94,140.81,116.05785992]
[1633068823543,3.02,140.96,140.81,132.49667517]
[1633068824146,12.68517441,140.95,140.81,126.86124556]
[1633068824944,3.02,140.96,140.82,5.87287347]
[1633068825148,3.02,140.96,140.83,3.02]
[1633068825344,3.02,140.96,140.84,5.87255144]
[1633068825546,3.02,140.96,140.85,3.02]
[1633068825944,3.02,140.96,140.86,26.32607926]
[1633068826144,15.38753585,140.96,140.86,26.32607926]
[1633068827146,3.02,140.96,140.86,26.32607926]
[1633068828150,27.23259372,140.95,140.82,3.02]
[1633068828354,3.02,140.94,140.83,5.87869478]
[1633068828748,3.02,140.94,140.81,5.87888968]
[1633068828949,3.02,140.94,140.8,3.02]
[1633068829152,3.02,140.94,140.81,30.28941882]
[1633068829350,3.02,140.94,140.82,5.87874999]
[1633068830352,3.02,140.94,140.83,3.02]
[1633068830553,3.02,140.94,140.84,5.87784222]
[1633068830753,3.02,140.96,140.85,3.02]
[1633068830953,3.02,140.96,140.86,5.8778266]
[1633068831153,3.02,140.96,140.87,22.6052608]
[1633068833454,3.02,140.96,140.85,3.02]
[1633068834452,3.02,140.96,140.86,30.76216532]
[1633068834852,3.02,140.96,140.86,24.88411256]
[1633068835051,3.02,140.96,140.87,5.87810921]
[1633068835252,3.02,140.96,140.86,24.88411256]
[1633068835653,3.02,140.96,140.87,5.87819753]
[1633068839054,3.04088,140.98,140.87,8.89819753]
[1633068839453,3.02,140.98,140.88,5.8794189]
[1633068839653,3.02,140.98,140.89,25.84941485]
[1633068840056,3.02,140.98,140.9,5.88020648]
[1633068841456,78.2039,140.99,140.9,5.88020648]
[1633068842656,9.88532429,140.98,140.9,5.88020648]
[1633068842857,9.88532429,140.98,140.89,28.86941485]
[1633068843059,9.88532429,140.98,140.89,25.84941485]
[1633068846358,3.02,140.99,140.89,25.84941485]
[1633068847367,25.19927288,140.98,140.89,25.84941485]
[1633068847965,3.02,140.99,140.89,25.84941485]
[1633068848966,3.02,140.99,140.89,47.21341485]
[1633068849165,27.11052154,141.01,140.9,5.88053303]
[1633068849368,27.11052154,141.01,140.91,3.02]
[1633068849568,27.11052154,141.01,140.92,5.87962023]
[1633068849767,27.11052154,141.01,140.92,28.41762023]
[1633068849964,27.11052154,141.01,140.93,3.02]
[1633068850165,27.11052154,141.01,140.93,8.89932844]
[1633068850366,27.11052154,141.01,140.94,33.95342537]
[1633068850565,27.11052154,141.01,140.95,3.02]
[1633068850765,27.11052154,141.01,140.95,21.717]
[1633068852364,27.11052154,141.01,140.95,3.02]
[1633068852567,27.11052154,141.01,140.92,3.02]
[1633068852766,32.74595115,141.01,140.91,20.5]
[1633068852965,57.48795378,141.01,140.91,20.5]
[1633068853166,3.02,141.0,140.91,20.5]
[1633068853368,10.32115795,140.99,140.91,20.5]
[1633068853565,40.16858756,140.99,140.91,20.5]
[1633068853966,34.53315795,140.99,140.91,20.5]
[1633068854167,34.53315795,140.99,140.86,3.02]
[1633068854373,34.53315795,140.99,140.86,33.02]
[1633068854967,34.53315795,140.99,140.87,28.71735749]
[1633068856169,34.53315795,140.99,140.86,3.02]
[1633068856369,59.27516058,140.99,140.86,3.02]
[1633068856568,91.61300366,140.99,140.86,3.02]
[1633068856768,0.02088,140.98,140.84,3.02]
[1633068856969,3.02,140.97,140.84,3.02]
[1633068857171,23.51233578,140.96,140.84,3.02]
[1633068857368,3.02,140.95,140.84,3.02]
[1633068857570,3.04088,140.95,140.84,3.02]
[1633068859073,3.04088,140.95,140.83,23.13506303]
[1633068860073,17.91088,140.95,140.82,3.02]
[1633068860275,23.54630961,140.95,140.82,3.02]
[1633068861074,17.91088,140.95,140.83,22.09781107]
[1633068861276,3.04088,140.95,140.83,22.09781107]
[1633068862378,2.4052574,140.91,140.78,20.5]
[1633068862575,2.4052574,140.91,140.79,3.02]
[1633068862776,8.65542961,140.9,140.78,20.5]
[1633068862975,0.02088,140.89,140.78,20.5]
[1633068863175,3.02,140.88,140.78,20.5]
[1633068863380,12.42648416,140.87,140.75,3.02]
[1633068863575,0.02088,140.86,140.75,3.02]
[1633068865176,15.44648416,140.87,140.75,3.02]
[1633068866381,15.42560416,140.87,140.75,3.02]
[1633068866779,45.8030364,140.87,140.75,30.0]
[1633068866977,53.75635465,140.87,140.75,50.5]
[1633068867177,0.02088,140.86,140.75,50.5]
[1633068867377,3.02,140.85,140.73,3.02]
[1633068867583,23.51233578,140.84,140.72,23.62164557]